bitfinex-derivatives/quotes_ETHF0:USTF0_20241023
["timestamp","ask_amount","ask_price","bid_price","bid_amount"]
[1729688896255,0.0657381,2576.0,2575.9,3.41848]
[1729688896955,0.4541981,2576.0,2575.9,3.03]
[1729688897154,0.45419522,2576.0,2575.9,3.03]
[1729688897963,0.45419522,2576.0,2575.9,3.41848]
[1729688900159,0.38846,2576.0,2575.9,3.41848]
[1729688900359,0.51993185,2576.0,2575.9,3.41848]
[1729688901058,0.45419642,2576.0,2575.9,3.41848]
[1729688901264,0.13147418,2576.0,2575.9,3.03]
[1729688901559,0.51993418,2576.0,2575.9,3.03]
[1729688901764,0.45419642,2576.0,2575.9,3.03]
[1729688901955,0.51993505,2576.0,2575.9,3.03]
[1729688902355,0.38849,2575.8,2575.7,3.6304]
[1729688902557,0.06573863,2575.8,2575.5,3.03]
[1729688902868,0.38852,2575.6,2575.5,3.03]
[1729688903059,0.45425863,2575.6,2575.5,3.03]
[1729688903264,0.38854,2575.5,2575.4,1.20124]
[1729688903466,0.45427863,2575.5,2575.4,4.23124]
[1729688904360,0.06573863,2575.5,2575.4,4.23124]
[1729688904972,0.06573863,2575.8,2575.4,10.9337]
[1729688905273,0.4135,2575.9,2575.5,3.03]
[1729688905473,0.38852,2575.7,2575.6,0.38851]
[1729688905676,0.4542552,2575.7,2575.6,0.38851]
[1729688905976,0.38852,2575.6,2575.5,3.41853]
[1729688906177,0.4542552,2575.6,2575.5,3.41853]
[1729688907571,0.4542552,2575.6,2575.5,3.81733]
[1729688908077,0.45428038,2575.6,2575.5,3.81733]
[1729688908465,0.3213,2575.8,2575.7,0.3885]
[1729688908466,0.38851,2575.8,2575.7,0.3885]
[1729688908671,0.45427002,2575.8,2575.7,3.4185]
[1729688909172,0.45426953,2575.8,2575.7,3.4185]
[1729688909570,0.45426953,2575.8,2575.7,3.03]
[1729688910064,0.45426953,2575.8,2575.7,3.41851]
[1729688910971,0.45426953,2575.8,2575.7,3.03]
[1729688911470,0.45426953,2575.8,2575.7,3.4185]
[1729688911675,0.45426953,2575.8,2575.7,3.03]
[1729688912471,0.45426953,2575.8,2575.7,3.4185]
[1729688913176,0.45426956,2575.8,2575.7,3.4185]
[1729688913373,0.45426956,2575.8,2575.7,3.03]
[1729688913679,0.45426956,2575.8,2575.5,0.3988]
[1729688913680,0.38852,2575.6,2575.5,0.78732]
[1729688913976,0.4135,2575.9,2575.5,3.4288]
[1729688914164,0.06576008,2575.8,2575.7,3.41849]
[1729688914367,0.45425008,2575.8,2575.7,3.41849]
[1729688916275,0.06576008,2575.8,2575.7,3.41849]
[1729688916670,0.97112,2576.1,2575.8,0.38849]
[1729688916671,0.38848,2575.9,2575.8,0.38849]
[1729688916873,0.45423914,2575.9,2575.8,0.38849]
[1729688917078,0.38848,2575.9,2575.8,0.38849]
[1729688917273,0.45423887,2575.9,2575.8,0.79529]
[1729688917576,0.45423887,2575.9,2575.8,0.4068]
[1729688917771,0.3885,2575.7,2575.6,0.38851]
[1729688918480,0.3885,2575.7,2575.6,1.78851]
[1729688918880,0.3885,2575.8,2575.7,0.3885]
[1729688919182,1.4,2576.0,2575.5,0.3988]
[1729688919380,0.38852,2575.6,2575.5,0.78733]
[1729688919575,0.38852,2575.6,2575.5,0.3988]
[1729688919774,0.38852,2575.6,2575.5,2.18733]
[1729688921778,0.38851,2575.8,2575.7,0.38849]
[1729688921979,0.38851,2575.8,2575.7,1.7885]
[1729688922381,0.38851,2575.8,2575.7,1.4]
[1729688922679,0.38851,2575.8,2575.7,1.7885]
[1729688925482,0.38851,2575.8,2575.7,1.4]
[1729688925685,0.38851,2575.8,2575.7,1.7885]
[1729688925883,0.38852,2575.7,2575.6,0.38851]
[1729688926084,0.38852,2575.7,2575.6,1.78851]
[1729688926577,0.38852,2575.7,2575.6,1.4]
[1729688926786,0.38852,2575.7,2575.6,1.78852]
[1729688927479,2.37121,2575.9,2575.5,0.78733]
[1729688927480,0.38852,2575.6,2575.5,0.78733]
[1729688927684,0.38852,2575.6,2575.5,2.18733]
[1729688927885,0.38852,2575.6,2575.5,1.7988]
[1729688932284,0.38852,2575.6,2575.5,2.2073]
[1729688940189,1.4,2575.6,2575.3,0.4174]
[1729688940385,1.78855,2575.4,2575.3,0.4077]
[1729688941091,0.38855,2575.4,2575.3,1.8077]
[1729688951696,0.38855,2575.4,2575.3,2.19626]
[1729688952000,0.38855,2575.4,2575.3,1.8077]
[1729688952203,0.38855,2575.4,2575.3,2.19626]
[1729688953602,0.38855,2575.4,2575.3,5.40406]
[1729688958003,0.38855,2575.4,2575.3,5.0155]
[1729688958406,0.38855,2575.4,2575.3,5.40406]
[1729688959501,0.38855,2575.4,2575.3,1.8077]
[1729688959807,0.38855,2575.4,2575.3,2.19626]
[1729688962003,0.38853,2575.6,2575.5,0.38852]
[1729688962204,0.38853,2575.6,2575.5,1.78852]
[1729688962399,0.38853,2575.6,2575.5,1.4]
[1729688962601,0.38853,2575.6,2575.5,1.78853]
[1729688962908,0.38853,2575.6,2575.5,1.4]
[1729688964907,0.38853,2575.6,2575.5,1.78853]
[1729688965107,0.38853,2575.6,2575.5,1.4]
[1729688965609,0.38853,2575.6,2575.5,1.78853]
[1729688966413,0.38853,2575.6,2575.5,1.4]
[1729688967115,0.38853,2575.6,2575.5,1.78853]
[1729688968519,0.38853,2575.6,2575.5,1.4]
[1729688969219,0.38853,2575.6,2575.5,1.78853]
[1729688970119,0.38853,2575.6,2575.5,1.4]
[1729688970517,0.38853,2575.6,2575.5,1.78853]
[1729688970717,0.38853,2575.6,2575.5,1.4]
[1729688972020,0.38853,2575.5,2575.4,2.21775]
[1729688977520,0.38853,2575.5,2575.4,2.60635]
[1729688979722,0.38853,2575.6,2575.5,0.38852]
[1729688979924,0.38853,2575.6,2575.5,1.78852]
[1729688981027,0.38853,2575.6,2575.5,1.4]
[1729688981326,0.38853,2575.6,2575.5,1.78853]
[1729688988941,0.38853,2575.6,2575.5,4.99633]
[1729688990844,0.3885,2575.8,2575.7,0.3885]
[1729688991045,0.3885,2575.8,2575.7,1.7885]
[1729688991541,0.80688,2575.9,2575.8,0.38849]
[1729688991747,0.80688,2575.9,2575.8,1.78849]
[1729688992344,0.80688,2575.9,2575.8,1.4]
[1729688992647,0.38848,2575.9,2575.8,1.4]
[1729688993146,0.38848,2575.9,2575.8,1.78849]
[1729688993748,0.38848,2575.9,2575.8,1.4]
[1729688994649,0.38848,2575.9,2575.8,1.78849]
[1729688994852,0.38848,2575.9,2575.8,1.4]
[1729688996241,0.38848,2575.9,2575.8,1.78849]
[1729688997055,0.38848,2575.9,2575.8,1.4]
[1729688998143,0.38848,2575.9,2575.8,1.7957]
[1729688998849,0.38848,2575.9,2575.8,2.18419]
[1729689000144,0.38848,2575.9,2575.8,1.7957]
[1729689001855,0.38849,2575.8,2575.7,1.809]
[1729689002148,0.3885,2575.7,2575.6,1.8271]
[1729689002351,0.3885,2575.7,2575.6,2.2496]
[1729689002352,0.7827,2575.7,2575.6,2.2496]
[1729689003652,2.1827,2575.7,2575.6,2.2496]
[1729689003857,0.7827,2575.7,2575.6,2.2496]
[1729689005950,0.7827,2575.7,2575.6,2.63812]
[1729689006147,0.7827,2575.7,2575.6,2.2496]
[1729689006353,0.7827,2575.7,2575.6,2.63812]
[1729689007251,0.7827,2575.7,2575.6,2.2496]
[1729689008350,0.7827,2575.7,2575.6,2.63812]
[1729689008746,3.59626,2576.0,2575.9,0.38847]
[1729689009055,4.6078,2576.0,2575.6,4.0574]
[1729689009259,0.3885,2575.7,2575.6,0.8496]
[1729689009854,0.3885,2575.7,2575.2,41.00108552]
[1729689009855,0.38856,2575.3,2575.2,41.18857]
[1729689010058,0.38856,2575.3,2575.2,43.00207]
[1729689010667,0.38856,2575.4,2575.3,0.38855]
[1729689010853,0.38856,2575.4,2575.3,2.19145]
[1729689013163,0.81784,2575.5,2575.4,0.38855]
[1729689013358,0.81784,2575.5,2575.4,1.78855]
[1729689013564,0.81784,2575.5,2575.4,1.4]
[1729689014964,0.81783,2575.5,2575.4,1.4]
[1729689015361,1.13923,2575.5,2575.4,1.4]
[1729689017159,0.38853,2575.5,2575.4,1.4]
[1729689017467,0.38853,2575.5,2575.4,1.78855]
[1729689018060,0.38853,2575.5,2575.4,1.4]
[1729689018562,2.37124,2575.8,2575.4,1.4]
[1729689018563,1.4,2575.8,2575.4,1.4]
[1729689018762,0.38852,2575.6,2575.5,1.7985]
[1729689018956,0.38852,2575.6,2575.4,0.38854]
[1729689018957,1.4,2575.6,2575.4,1.4]
[1729689019264,0.38855,2575.4,2575.3,1.7985]
[1729689021570,0.38855,2575.4,2575.3,0.3985]
[1729689021774,1.78855,2575.4,2575.3,0.3985]
[1729689021976,0.38855,2575.3,2575.2,41.2135]
[1729689022265,2.19105,2575.3,2575.2,41.2135]
[1729689023978,0.79105,2575.3,2575.2,43.00207]
[1729689024273,0.38854,2575.4,2575.3,0.38855]
[1729689024463,0.38854,2575.4,2575.3,1.78855]
[1729689025067,0.38853,2575.5,2575.4,0.38854]
[1729689025268,0.38853,2575.5,2575.4,1.8251]
[1729689025462,0.3885,2575.7,2575.6,0.38851]
[1729689025668,0.3885,2575.7,2575.6,1.78851]
[1729689026068,0.3885,2575.7,2575.6,2.19051]
[1729689026473,0.3885,2575.7,2575.6,1.802]
[1729689026670,0.3885,2575.7,2575.6,2.19051]
[1729689026870,0.3885,2575.7,2575.6,1.802]
[1729689027469,0.3885,2575.7,2575.6,2.19051]
[1729689028666,3.6208,2576.0,2575.6,1.802]
[1729689028872,3.6208,2576.0,2575.8,1.4]
[1729689028873,0.38846,2575.9,2575.8,1.4]
[1729689031774,0.38846,2575.9,2575.8,1.78848]
[1729689032379,0.38846,2575.9,2575.8,1.4]
[1729689033275,1.78846,2575.9,2575.8,1.4]
[1729689034369,3.6116,2576.3,2575.8,1.4]
[1729689034677,3.6116,2576.3,2576.2,1.4]
[1729689034678,3.5962,2576.3,2576.2,1.4]
[1729689034877,3.5962,2576.3,2575.9,0.38845]
[1729689034878,0.38842,2576.2,2576.1,1.4]
[1729689035077,5.67002,2576.2,2576.1,1.4]
[1729689035383,1.78842,2576.2,2576.1,1.4]
[1729689037581,0.38843,2576.1,2576.0,1.227]
[1729689037777,1.78843,2576.1,2576.0,0.4037]
[1729689037973,2.10963,2576.1,2576.0,0.4037]
[1729689039675,1.78843,2576.1,2576.0,0.4037]
[1729689042280,1.78843,2576.1,2575.7,1.8181]
[1729689042281,0.38848,2575.8,2575.7,1.8181]
[1729689043281,0.38848,2575.8,2575.7,2.20659]
[1729689044377,0.38845,2576.0,2575.9,0.38846]
[1729689044576,0.38845,2576.0,2575.9,1.78846]
[1729689044776,0.38845,2576.0,2575.9,1.4]
[1729689045188,0.38845,2576.0,2575.9,1.78846]
[1729689045876,1.4,2576.1,2575.9,1.78846]
[1729689046076,1.78843,2576.1,2576.0,0.8133]
[1729689046276,1.78843,2576.1,2576.0,1.2149]
[1729689047877,0.38843,2576.1,2576.0,2.6149]
[1729689052787,1.78843,2576.1,2576.0,2.6149]
[1729689053385,0.4096,2576.4,2576.1,0.38842]
[1729689053577,0.79799,2576.4,2576.3,1.4]
[1729689054098,1.8096,2576.4,2576.2,1.4]
[1729689054389,2.19799,2576.4,2576.3,0.4254]
[1729689055988,6.07959,2576.4,2576.3,0.4254]
[1729689056293,2.19799,2576.4,2576.3,1.8254]
[1729689056491,2.19799,2576.4,2576.3,0.4254]
[1729689056695,2.19799,2576.4,2576.3,1.8254]
[1729689057593,2.19799,2576.4,2576.3,0.4254]
[1729689059990,0.79799,2576.4,2576.3,0.4254]
[1729689060392,2.19799,2576.4,2576.3,0.4254]
[1729689061787,5.40579,2576.4,2576.3,0.4254]
[1729689063595,0.38843,2576.1,2576.0,2.2133]
[1729689064194,1.78843,2576.1,2576.0,0.8133]
[1729689064396,1.78843,2576.1,2576.0,0.4136]
[1729689064595,0.38843,2576.1,2576.0,0.4136]
[1729689064902,0.38843,2576.1,2576.0,1.8136]
[1729689065596,5.2816,2576.1,2575.9,0.3878]
[1729689065807,0.38845,2576.0,2575.9,0.3878]
[1729689067299,0.38845,2576.0,2575.8,3.6051]
[1729689067300,0.38846,2575.9,2575.8,3.6051]
[1729689067496,1.78846,2575.9,2575.8,3.6051]
[1729689067895,1.78846,2575.9,2575.8,5.0051]
[1729689068402,1.78846,2575.9,2575.8,3.2078]
[1729689069790,4.6078,2575.9,2575.7,0.416]
[1729689070100,1.78848,2575.8,2575.7,0.416]
[1729689070897,0.38854,2575.4,2575.3,4.0207]
[1729689071097,0.38854,2575.4,2575.3,5.8242]
[1729689072095,0.38854,2575.4,2575.3,4.4242]
[1729689072304,0.38854,2575.4,2575.3,5.8242]
[1729689075606,0.38854,2575.4,2575.3,6.21275]
[1729689075904,0.38854,2575.4,2575.3,5.8242]
[1729689076998,0.38854,2575.4,2575.3,6.21275]
[1729689077203,0.38854,2575.4,2575.3,5.8242]
[1729689085105,0.38854,2575.4,2575.3,6.21275]
[1729689085507,0.38854,2575.4,2575.3,5.8242]
[1729689086001,0.38854,2575.4,2575.3,5.4032]
[1729689086213,1.78854,2575.4,2575.3,0.7954]
[1729689090109,0.38857,2575.2,2575.1,40.8]
[1729689090413,0.38858,2575.1,2575.0,3.2078]
[1729689090608,2.61148,2575.1,2575.0,3.2078]
[1729689090807,6.49468,2575.1,2575.0,3.2078]
[1729689091203,6.07818,2575.1,2575.0,3.2078]
[1729689091408,2.19498,2575.1,2575.0,3.2078]
[1729689092007,6.07818,2575.1,2575.0,3.2078]
[1729689092611,6.07818,2575.1,2574.9,40.8]
[1729689092612,0.3886,2575.0,2574.9,40.8]
[1729689092914,1.7886,2575.0,2574.9,40.8]
[1729689096721,2.1098,2575.0,2574.9,40.8]
[1729689097020,9.88813558,2575.0,2574.7,3.2078]
[1729689097217,1.78863,2574.8,2574.7,3.2078]
[1729689098008,0.38864,2574.7,2574.6,0.8244]
[1729689098214,1.78864,2574.7,2574.6,0.8244]
[1729689098616,1.78864,2574.7,2574.6,41.6244]
[1729689101522,0.38864,2574.7,2574.6,43.0244]
[1729689101727,1.78864,2574.7,2574.6,43.0244]
[1729689102422,1.78864,2574.7,2574.6,41.6244]
[1729689105523,1.78864,2574.7,2574.6,42.01306]
[1729689105925,1.78864,2574.7,2574.6,41.6244]
[1729689106122,1.78864,2574.7,2574.6,42.01306]
[1729689106734,0.38864,2574.7,2574.6,43.41306]
[1729689108333,1.78864,2574.8,2574.7,0.38864]
[1729689108725,0.38864,2574.8,2574.7,5.67264]
[1729689108932,1.78864,2574.8,2574.7,46.47264]
[1729689109532,1.78864,2574.8,2574.7,44.684]
[1729689109732,1.78864,2574.8,2574.7,45.07264]
[1729689110626,0.38864,2574.8,2574.7,45.07264]
[1729689113133,0.38864,2574.8,2574.7,42.58864]
[1729689114539,0.38864,2574.8,2574.7,41.18864]
[1729689114936,1.4,2574.9,2574.7,40.8]
[1729689115137,0.38863,2574.8,2574.7,41.18863]
[1729689117833,0.38863,2574.8,2574.7,42.58863]
[1729689120537,0.38863,2574.8,2574.7,41.18863]
[1729689123947,0.38863,2574.8,2574.7,42.58863]
[1729689124539,0.38862,2574.9,2574.8,0.38861]
[1729689124849,0.38862,2574.9,2574.8,1.78861]
[1729689125240,0.38862,2574.9,2574.8,42.58861]
[1729689125441,1.4,2575.0,2574.8,42.2]
[1729689125637,0.38859,2575.1,2575.0,0.38859]
[1729689125851,1.4,2575.1,2575.0,0.4237]
[1729689126145,1.4,2575.1,2575.0,0.81229]
[1729689126146,1.78858,2575.1,2575.0,0.81229]
[1729689127149,1.78858,2575.1,2575.0,0.4237]
[1729689127549,1.4,2575.1,2574.8,40.8]
[1729689127748,1.78861,2574.9,2574.8,40.8]
[1729689128141,6.684,2574.9,2574.5,0.4128]
[1729689128344,0.38869,2574.4,2574.3,10.7719504]
[1729689128544,1.78869,2574.4,2574.3,3.99469]
[1729689128837,1.78869,2574.4,2574.3,44.7947]
[1729689129040,1.78869,2574.4,2574.3,44.406]
[1729689129447,1.78869,2574.4,2574.3,44.7947]
[1729689129850,1.78869,2574.4,2574.3,44.406]
[1729689130648,1.78869,2574.4,2574.3,44.0078]
[1729689132350,1.78869,2574.4,2574.3,40.8]
[1729689132549,0.38872,2574.2,2574.1,0.3982]
[1729689132749,1.78872,2574.2,2574.1,0.3982]
[1729689133149,1.78872,2574.2,2574.1,41.1982]
[1729689153465,1.78872,2574.2,2574.1,41.58693]
[1729689154366,1.78872,2574.2,2574.1,41.1982]
[1729689154660,0.38872,2574.2,2574.1,41.58693]
[1729689154859,1.4,2574.2,2574.1,41.1982]
[1729689155061,1.4,2574.2,2574.1,41.58692]
[1729689155255,1.78872,2574.2,2574.1,41.58692]
[1729689156660,1.78872,2574.2,2574.1,41.1982]
[1729689156856,1.78872,2574.2,2574.1,41.58693]
[1729689157059,1.78872,2574.2,2574.1,41.1982]
[1729689157658,1.78872,2574.2,2574.1,41.58693]
[1729689157966,1.78872,2574.2,2574.1,41.1982]
[1729689159268,1.78872,2574.2,2574.1,41.58693]
[1729689160270,1.78872,2574.2,2574.1,41.1982]
[1729689166064,1.78872,2574.2,2574.1,0.3982]
[1729689167766,0.38872,2574.2,2574.1,0.3982]
[1729689167970,1.78872,2574.2,2574.1,0.3982]
[1729689174669,1.78872,2574.2,2574.1,3.606]
[1729689175777,1.78872,2574.2,2574.1,0.3982]
[1729689176282,1.78872,2574.2,2574.1,3.606]
[1729689177374,1.78872,2574.2,2574.1,0.3982]
[1729689177570,1.78872,2574.2,2574.1,3.606]
[1729689177981,1.78872,2574.2,2574.1,0.3982]
[1729689178181,1.78872,2574.2,2574.1,3.606]
[1729689180185,1.78872,2574.2,2574.1,0.3982]
[1729689180382,1.78872,2574.2,2574.1,3.606]
[1729689184884,1.78872,2574.2,2574.1,3.99473]
[1729689185079,1.4,2574.2,2574.1,3.99473]
[1729689185786,1.78872,2574.3,2574.2,0.38872]
[1729689185987,1.78872,2574.3,2574.2,1.22752]
[1729689188385,3.2078,2574.6,2574.2,7.0954]
[1729689188589,1.4,2574.6,2574.4,1.4]
[1729689188788,1.4,2574.6,2574.4,0.38869]
[1729689188789,1.4,2574.5,2574.4,0.38869]
[1729689189489,1.4,2574.5,2574.4,5.67269]
[1729689190393,1.4,2574.5,2574.4,1.78869]
[1729689191090,0.38869,2574.4,2574.3,3.2078]
[1729689191394,1.78869,2574.4,2574.3,3.2078]
[1729689193087,0.97165,2574.7,2574.3,3.2078]
[1729689193289,1.78869,2574.4,2574.3,3.2078]
[1729689195287,1.78869,2574.4,2574.3,3.5965]
[1729689196788,1.78869,2574.4,2574.3,3.2078]
[1729689196989,1.78869,2574.4,2574.3,3.5965]
[1729689197897,1.78869,2574.4,2574.3,3.2078]
[1729689199493,1.78869,2574.4,2574.3,3.5965]
[1729689199999,1.78869,2574.4,2574.3,3.2078]
[1729689202994,1.4,2574.4,2574.2,0.4089]
[1729689203199,1.7887,2574.3,2574.2,4.00541]
[1729689207192,1.4,2574.3,2574.2,4.00542]
[1729689207695,1.4,2574.3,2574.2,4.42412]
[1729689208198,1.7887,2574.3,2574.2,4.42412]
[1729689208502,1.4,2574.3,2574.2,4.42412]
[1729689209802,4.59649,2574.8,2574.2,9.3202]
[1729689210002,1.78867,2574.6,2574.5,0.38867]
[1729689210304,1.78867,2574.6,2574.4,1.78868]
[1729689210305,0.38867,2574.5,2574.4,1.78868]
[1729689210897,1.78867,2574.5,2574.4,0.38868]
[1729689211811,1.4,2574.6,2574.4,1.4]
[1729689212098,1.78867,2574.5,2574.4,0.38868]
[1729689212405,1.78869,2574.5,2574.4,0.38869]
[1729689213498,1.4,2574.5,2574.4,1.78869]
[1729689216701,1.4,2574.5,2574.4,4.99649]
[1729689218705,0.4171,2574.8,2574.4,4.99649]
[1729689219006,0.80574,2574.8,2574.7,0.38864]
[1729689219306,0.4171,2574.8,2574.5,1.4]
[1729689219499,0.80573,2574.8,2574.7,0.38864]
[1729689219903,0.38864,2574.7,2574.6,0.81155]
[1729689220305,0.4171,2574.8,2574.6,0.81155]
[1729689220504,1.4,2574.7,2574.6,0.4229]
[1729689220703,1.4,2574.7,2574.6,0.81156]
[1729689222904,1.78864,2574.7,2574.6,0.81156]
[1729689223511,1.4,2574.7,2574.6,0.81156]
[1729689224307,1.4,2574.7,2574.6,2.21156]
[1729689224910,1.4,2574.7,2574.6,2.64046]
[1729689227000,1.78864,2574.7,2574.6,2.64046]
[1729689227613,1.78864,2574.7,2574.6,3.06656]
[1729689228112,1.4,2574.7,2574.6,3.06656]
[1729689228506,1.78864,2574.7,2574.6,3.06656]
[1729689233908,1.4,2574.7,2574.6,3.06656]
[1729689234317,1.78864,2574.7,2574.6,3.06656]
[1729689235513,1.4,2574.7,2574.6,3.06656]
[1729689235909,1.78864,2574.7,2574.6,3.06656]
[1729689239918,1.4,2574.7,2574.6,3.06656]
[1729689240323,1.78863,2574.8,2574.6,2.6779]
[1729689240622,1.78863,2574.8,2574.7,1.78864]
[1729689240623,1.4,2574.8,2574.7,1.78864]
[1729689241919,1.78863,2574.8,2574.7,1.78864]
[1729689242225,1.4,2574.8,2574.7,1.78864]
[1729689242525,1.78863,2574.9,2574.8,0.38862]
[1729689243014,1.4,2574.9,2574.8,0.38862]
[1729689243418,1.4,2574.9,2574.8,1.78862]
[1729689243618,1.4,2574.9,2574.8,0.38862]
[1729689243819,1.4,2574.9,2574.8,1.78862]
[1729689244225,0.97131,2575.6,2574.8,8.4918]
[1729689244422,3.2078,2575.8,2575.2,0.38857]
[1729689244423,0.4227,2575.3,2575.2,0.38857]
[1729689244726,0.4186,2575.5,2575.2,0.38857]
[1729689244727,1.4,2575.4,2575.3,0.78884]
[1729689244920,1.78854,2575.4,2575.3,42.00284]
[1729689245124,1.4,2575.4,2575.3,42.00284]
[1729689245423,1.4,2575.6,2575.5,0.38851]
[1729689245824,1.78851,2575.6,2575.5,0.38851]
[1729689246024,1.4,2575.6,2575.5,1.78851]
[1729689247026,1.1629,2575.7,2575.5,1.4]
[1729689247027,1.55139,2575.7,2575.5,1.4]
[1729689247231,1.4,2575.6,2575.5,1.78852]
[1729689247422,1.78851,2575.6,2575.5,1.4]
[1729689247722,0.8112,2575.7,2575.5,1.4]
[1729689248031,2.2112,2575.7,2575.6,0.38851]
[1729689248326,2.2112,2575.7,2575.5,1.78852]
[1729689249129,1.8227,2575.7,2575.5,1.78852]
[1729689249437,2.2112,2575.7,2575.5,1.78852]
[1729689249825,1.8227,2575.7,2575.6,0.38851]
[1729689250226,0.4227,2575.7,2575.6,1.78851]
[1729689251834,1.4,2575.8,2575.7,0.38849]
[1729689252043,1.4,2575.8,2575.7,0.78329]
[1729689253032,1.78848,2575.8,2575.7,0.78329]
[1729689253332,1.4,2575.8,2575.7,0.78329]
[1729689253535,1.4,2575.8,2575.7,0.3948]
[1729689253835,1.4,2575.8,2575.7,0.78329]
[1729689254630,2.19527,2575.9,2575.7,1.7948]
[1729689254837,2.19527,2575.9,2575.7,2.18328]
[1729689255237,1.4,2575.8,2575.7,2.18328]
[1729689255437,1.78848,2575.8,2575.7,2.18328]
[1729689255735,1.4,2575.8,2575.7,2.18328]
[1729689256339,2.19527,2575.9,2575.7,2.18328]
[1729689257338,2.19527,2575.9,2575.7,1.7948]
[1729689257544,2.19527,2575.9,2575.7,2.18329]
[1729689257845,2.19527,2575.9,2575.7,2.57059]
[1729689258232,1.8068,2575.9,2575.7,2.1821]
[1729689258437,2.19527,2575.9,2575.7,2.57058]
[1729689258637,1.8068,2575.9,2575.8,0.38848]
[1729689260639,1.8068,2575.9,2575.8,1.78848]
[1729689261647,1.78844,2576.1,2575.8,1.4]
[1729689261952,1.4,2575.9,2575.8,1.78848]
[1729689262655,0.38845,2576.0,2575.9,0.38846]
[1729689262954,1.78845,2576.1,2575.9,1.78846]
[1729689263149,0.38845,2576.0,2575.9,1.78846]
[1729689263349,1.4,2576.1,2575.9,1.78846]
[1729689263546,1.78844,2576.1,2575.9,1.4]
[1729689263751,1.78844,2576.1,2576.0,0.4218]
[1729689264654,0.4207,2576.2,2576.0,1.8218]
[1729689264859,0.4207,2576.2,2576.1,2.19093]
[1729689265250,2.20912,2576.2,2576.1,2.19093]
[1729689265759,2.20912,2576.2,2576.1,1.8025]
[1729689269568,2.20912,2576.2,2576.1,2.19093]
[1729689269755,2.20912,2576.2,2576.1,1.8025]
[1729689271562,2.20912,2576.2,2576.1,2.19093]
[1729689271755,4.17873,2576.6,2576.1,1.8025]
[1729689271962,1.78839,2576.4,2576.3,1.7884]
[1729689272355,1.78839,2576.4,2576.3,0.3884]
[1729689272669,1.4,2576.4,2576.3,0.38839]
[1729689272859,1.4,2576.4,2576.3,0.80389]
[1729689273059,1.78839,2576.4,2576.3,0.80389]
[1729689273360,1.78839,2576.4,2576.3,0.4155]
[1729689275668,1.78839,2576.4,2576.3,0.8039]
[1729689275970,0.38838,2576.5,2576.3,2.20389]
[1729689276157,1.4,2576.4,2576.3,2.20389]
[1729689276362,1.4,2576.4,2576.3,43.00389]
[1729689276662,1.78839,2576.4,2576.3,43.00389]
[1729689276863,1.78839,2576.4,2576.3,41.60389]
[1729689277866,1.78839,2576.4,2576.3,41.2155]
[1729689278063,1.78839,2576.4,2576.3,41.6039]
[1729689279475,1.78839,2576.4,2576.3,43.0039]
[1729689280567,0.38838,2576.5,2576.3,42.6155]
[1729689280874,2.17725,2576.7,2576.6,0.38836]
[1729689281070,0.77724,2576.7,2576.6,1.78836]
[1729689281564,2.17724,2576.7,2576.6,1.78836]
[1729689282164,3.59614,2576.8,2576.7,0.38834]
[1729689282371,3.59614,2576.8,2576.7,1.78834]
[1729689282372,3.2078,2576.8,2576.7,1.78834]
[1729689283168,1.78832,2576.9,2576.7,2.20014]
[1729689283875,0.38833,2576.8,2576.7,2.20014]
[1729689284271,1.78832,2576.9,2576.7,2.20014]
[1729689284471,2.18181,2577.0,2576.8,1.78832]
[1729689284668,2.18181,2577.0,2576.9,0.4261]
[1729689284669,2.1818,2577.0,2576.9,0.4261]
[1729689284969,2.1818,2577.0,2576.9,0.818]
[1729689288373,0.7818,2577.0,2576.9,2.218]
[1729689289377,2.1818,2577.0,2576.9,2.218]
[1729689290868,1.7883,2577.0,2576.9,2.218]
[1729689291676,0.3883,2577.0,2576.9,2.218]
[1729689292067,1.78829,2577.1,2576.9,2.6063]
[1729689292272,0.38829,2577.1,2577.0,1.4]
[1729689292472,1.78829,2577.1,2577.0,1.4]
[1729689292674,4.1784,2577.4,2577.0,1.4]
[1729689292882,4.1784,2577.4,2576.9,2.218]
[1729689292883,1.4,2577.3,2577.2,1.4]
[1729689293085,1.78825,2577.3,2577.2,1.4]
[1729689294082,1.78825,2577.3,2577.2,1.8209]
[1729689294675,0.38825,2577.3,2577.2,1.8209]
[1729689294868,1.78825,2577.3,2577.2,1.8209]
[1729689298184,0.38825,2577.3,2577.2,1.8209]
[1729689302392,1.78825,2577.3,2577.2,0.4209]
[1729689302886,0.38828,2577.1,2577.0,1.4]
[1729689303081,0.38828,2577.1,2577.0,1.8015]
[1729689304680,0.38828,2577.1,2576.2,0.38841]
[1729689304681,0.38839,2576.4,2576.2,0.38841]
[1729689304887,0.38839,2576.4,2576.3,43.0069]
[1729689305394,0.38839,2576.4,2576.3,41.6069]
[1729689305395,1.78839,2576.4,2576.3,41.6069]
[1729689305579,1.78839,2576.4,2576.3,40.8]
[1729689306187,5.66999,2576.4,2576.3,40.8]
[1729689306587,6.09809,2576.4,2576.3,40.8]
[1729689307386,2.21649,2576.4,2576.3,42.2]
[1729689307589,2.21649,2576.4,2576.2,1.4]